bitfinex-derivatives/quotes_BTCF0:USTF0_20251125
["timestamp","ask_amount","ask_price","bid_price","bid_amount"]
[1764073525159,0.04436,87736.0,87735.0,0.0337817]
[1764073525361,0.49436,87736.0,87735.0,0.0552117]
[1764073525657,0.25436,87736.0,87735.0,0.0552117]
[1764073526865,0.0229409,87744.0,87743.0,0.0552108]
[1764073527070,0.0445309,87744.0,87743.0,0.04381]
[1764073528166,0.5445309,87744.0,87743.0,0.04381]
[1764073530173,0.5229409,87744.0,87742.0,0.0052108]
[1764073530473,0.5445309,87744.0,87743.0,0.04381]
[1764073530664,0.5583009,87744.0,87743.0,0.04381]
[1764073530869,0.5583009,87744.0,87737.0,0.17364]
[1764073530870,0.04436,87738.0,87737.0,0.2288515]
[1764073531173,0.04436,87738.0,87737.0,0.0552115]
[1764073531760,0.05813,87738.0,87737.0,0.0552115]
[1764073532171,0.04436,87738.0,87737.0,0.0552115]
[1764073532372,0.54436,87738.0,87737.0,0.0552115]
[1764073533061,0.55813,87738.0,87737.0,0.0552115]
[1764073533272,0.04436,87735.0,87734.0,0.1503719]
[1764073533469,0.04436,87733.0,87730.0,0.06121867]
[1764073533669,0.04436,87728.0,87725.0,0.02621867]
[1764073533969,0.04436,87728.0,87715.0,0.00012818]
[1764073533970,0.04436,87716.0,87715.0,0.00012818]
[1764073534169,0.41436,87716.0,87715.0,0.02250818]
[1764073534365,0.41436,87716.0,87715.0,0.04393818]
[1764073535977,0.41436,87716.0,87715.0,0.05534258]
[1764073536274,0.91436,87716.0,87715.0,0.05534258]
[1764073536475,0.54436,87716.0,87715.0,0.05534258]
[1764073536668,0.54436,87716.0,87715.0,0.04393818]
[1764073538073,0.54436,87716.0,87715.0,0.05534258]
[1764073538277,0.54436,87716.0,87715.0,0.04393818]
[1764073541172,0.5,87716.0,87715.0,0.04393818]
[1764073541368,0.5229,87716.0,87715.0,0.04393818]
[1764073541568,0.54402,87716.0,87715.0,0.04393818]
[1764073542179,0.5229,87716.0,87715.0,0.04393818]
[1764073542577,0.54402,87716.0,87715.0,0.04393818]
[1764073543268,0.5229,87716.0,87715.0,0.04393818]
[1764073543671,0.5,87716.0,87715.0,0.04393818]
[1764073544278,0.5229,87716.0,87715.0,0.04393818]
[1764073544870,0.54402,87716.0,87715.0,0.04393818]
[1764073546879,0.5,87716.0,87715.0,0.04393818]
[1764073547484,0.00017101,87724.0,87723.0,0.0553534]
[1764073547978,0.04419101,87724.0,87723.0,0.04395]
[1764073548281,0.04419101,87724.0,87723.0,0.16219]
[1764073549183,0.54419101,87724.0,87723.0,0.16219]
[1764073549378,0.54419101,87724.0,87723.0,0.04395]
[1764073549576,0.54419101,87724.0,87723.0,0.13415]
[1764073550082,0.54419101,87724.0,87723.0,0.13315]
[1764073554781,0.54419101,87724.0,87723.0,0.1445534]
[1764073556084,0.54419101,87724.0,87723.0,0.13315]
[1764073556281,0.04402,87722.0,87720.0,0.06122695]
[1764073556584,0.04402,87722.0,87715.0,0.00012818]
[1764073556585,0.04402,87716.0,87715.0,0.00012818]
[1764073556785,0.04402,87712.0,87711.0,0.06122695]
[1764073556975,0.04402,87711.0,87710.0,0.07352]
[1764073557380,0.04402,87711.0,87710.0,0.11903]
[1764073557779,0.04416164,87711.0,87710.0,0.11903]
[1764073559291,0.04351,87708.0,87707.0,0.04473101]
[1764073559485,0.04351,87708.0,87707.0,0.22457101]
[1764073559791,0.04351,87708.0,87707.0,0.23597641]
[1764073560002,0.04351,87708.0,87707.0,0.05613641]
[1764073560183,0.04351,87708.0,87707.0,0.23597641]
[1764073561488,0.54351,87708.0,87707.0,0.22457101]
[1764073562486,0.54351,87708.0,87707.0,0.04473101]
[1764073562686,0.54351,87708.0,87707.0,0.22457101]
[1764073563092,0.55523201,87708.0,87707.0,0.22457101]
[1764073563295,0.97523201,87708.0,87707.0,0.02164101]
[1764073563590,0.98212201,87708.0,87707.0,0.04104596]
[1764073563983,0.98226467,87708.0,87707.0,0.04104596]
[1764073564184,1.11226467,87708.0,87707.0,0.00818858]
[1764073564385,0.0549161,87702.0,87701.0,0.02147]
[1764073564588,0.0549165,87699.0,87698.0,0.04456]
[1764073564788,0.04351,87699.0,87698.0,0.04456]
[1764073565383,0.04351,87699.0,87698.0,0.14712]
[1764073565584,0.04351,87699.0,87698.0,0.2244]
[1764073565789,0.54351,87699.0,87698.0,0.2254]
[1764073566389,0.54351,87699.0,87698.0,0.2264]
[1764073567611,0.54351,87699.0,87698.0,0.04656]
[1764073567799,0.54351,87699.0,87698.0,0.2264]
[1764073569094,0.54351,87699.0,87698.0,0.04656]
[1764073569299,0.54351,87699.0,87698.0,0.20331]
[1764073569499,0.54351,87699.0,87698.0,0.2264]
[1764073570000,0.5549165,87699.0,87698.0,0.2264]
[1764073570592,0.5549165,87699.0,87698.0,0.04656]
[1764073571200,0.54351,87699.0,87698.0,0.04656]
[1764073575805,0.5,87699.0,87698.0,0.04656]
[1764073576199,0.5,87699.0,87698.0,0.10784139]
[1764073576405,0.5,87699.0,87698.0,0.04656]
[1764073576703,0.00012794,87702.0,87701.0,0.04293]
[1764073576906,0.00012794,87702.0,87701.0,0.10411165]
[1764073577106,0.04604794,87702.0,87701.0,0.10411165]
[1764073577301,0.04604794,87702.0,87701.0,0.04293]
[1764073577905,0.04604794,87702.0,87701.0,0.04393]
[1764073578107,0.54604794,87702.0,87701.0,0.10511165]
[1764073580308,0.54604794,87702.0,87701.0,0.04393]
[1764073581010,0.54604794,87702.0,87701.0,0.10514384]
[1764073581204,0.54604794,87702.0,87701.0,0.04393]
[1764073581604,0.54604794,87702.0,87701.0,0.10515725]
[1764073582101,0.54604794,87702.0,87701.0,0.04393]
[1764073583611,0.50012794,87702.0,87701.0,0.04393]
[1764073584913,0.00012794,87702.0,87701.0,0.04393]
[1764073586718,0.04592,87717.0,87716.0,0.04293]
[1764073587204,0.54592,87717.0,87716.0,0.04293]
[1764073595119,0.54592,87717.0,87708.0,0.00017101]
[1764073595120,0.0573248,87712.0,87711.0,0.06130563]
[1764073595421,0.5073248,87712.0,87711.0,0.17984]
[1764073595718,0.5073248,87712.0,87708.0,0.00017101]
[1764073595719,0.0573252,87709.0,87708.0,0.00017101]
[1764073596913,0.04592,87709.0,87708.0,0.00017101]
[1764073600136,0.46592,87709.0,87708.0,0.00017101]
[1764073600332,0.96592,87709.0,87708.0,0.00017101]
[1764073601616,0.96592,87709.0,87708.0,0.01157631]
[1764073603226,1.0000957,87709.0,87708.0,0.00017101]
[1764073604126,0.9886905,87709.0,87708.0,0.00017101]
[1764073604523,0.9886905,87709.0,87708.0,0.02191101]
[1764073604820,0.54592,87709.0,87708.0,0.04505101]
[1764073608328,0.54592,87709.0,87708.0,0.05645631]
[1764073609729,0.52306,87709.0,87708.0,0.05645631]
[1764073610025,0.54468,87709.0,87708.0,0.05645631]
[1764073612726,0.04468,87709.0,87708.0,0.05645631]
[1764073613432,0.04468,87709.0,87708.0,0.04505101]
[1764073614023,0.04468,87709.0,87708.0,0.17693101]
[1764073614529,0.0560852,87709.0,87708.0,0.17693101]
[1764073615028,0.04468,87709.0,87708.0,0.22489101]
[1764073615329,0.04468,87709.0,87708.0,0.04505101]
[1764073615634,0.04468,87709.0,87708.0,0.22489101]
[1764073616133,0.04468,87709.0,87708.0,0.23629631]
[1764073616533,0.04468,87709.0,87708.0,0.22489101]
[1764073617730,0.04468,87709.0,87708.0,0.04505101]
[1764073618034,0.02306,87709.0,87708.0,0.22489101]
[1764073618436,0.04434,87709.0,87708.0,0.22489101]
[1764073620635,0.0427,87720.0,87719.0,0.04347]
[1764073620839,0.06547746,87720.0,87719.0,0.04347]
[1764073621430,0.06547746,87720.0,87719.0,0.0548739]
[1764073621630,0.56547746,87720.0,87719.0,0.02229]
[1764073623137,0.56547746,87720.0,87719.0,0.04347]
[1764073623339,0.56547746,87720.0,87719.0,0.02229]
[1764073623537,0.56547746,87720.0,87719.0,0.0336939]
[1764073623834,0.56547746,87720.0,87719.0,0.0548739]
[1764073624139,0.0541045,87714.0,87713.0,0.04347]
[1764073625634,0.5541045,87714.0,87713.0,0.04347]
[1764073627045,0.5541045,87714.0,87713.0,0.02229]
[1764073627252,0.05071,87710.0,87709.0,0.24122209]
[1764073627443,0.46071,87710.0,87709.0,0.17984]
[1764073627855,0.05071,87710.0,87709.0,0.20213]
[1764073628055,0.32071,87710.0,87709.0,0.20213]
[1764073628354,0.32071,87710.0,87709.0,0.02229]
[1764073629057,0.0541052,87709.0,87708.0,0.00017101]
[1764073629261,0.4841052,87709.0,87708.0,0.00017101]
[1764073629660,0.4841052,87709.0,87708.0,0.02246101]
[1764073629958,0.4841052,87709.0,87708.0,0.00017101]
[1764073630150,0.9841052,87709.0,87708.0,0.00017101]
[1764073630750,0.9727,87709.0,87708.0,0.02246101]
[1764073631148,0.9727,87709.0,87708.0,0.04413101]
[1764073631362,0.9827,87709.0,87708.0,0.04413101]
[1764073632463,0.9627,87709.0,87708.0,0.04413101]
[1764073632759,0.5427,87709.0,87708.0,0.04413101]
[1764073633963,0.5427,87709.0,87708.0,0.00017101]
[1764073634461,0.5427,87709.0,87708.0,0.05536631]
[1764073634767,0.5427,87709.0,87708.0,0.04396101]
[1764073635260,0.5427,87709.0,87708.0,0.00017101]
[1764073635463,0.9727,87709.0,87708.0,0.00017101]
[1764073635762,0.9727,87709.0,87708.0,0.02229101]
[1764073636163,0.9727,87709.0,87708.0,0.04396101]
[1764073637663,0.9727,87709.0,87708.0,0.02229101]
[1764073638062,0.9727,87709.0,87708.0,0.00017101]
[1764073638464,0.9727,87709.0,87708.0,0.02229101]
[1764073638766,0.9841052,87709.0,87708.0,0.02229101]
[1764073639555,0.9841052,87709.0,87708.0,0.08365882]
[1764073639962,0.9841052,87709.0,87708.0,0.10532882]
[1764073640764,0.9841052,87709.0,87708.0,0.00017101]
[1764073642164,0.9841052,87709.0,87708.0,0.04396101]
[1764073642364,0.9841052,87709.0,87708.0,0.00017101]
[1764073642965,0.9841052,87709.0,87708.0,0.02229101]
[1764073643155,0.9841052,87709.0,87708.0,0.04396101]
[1764073643560,0.9841052,87709.0,87708.0,0.02229101]
[1764073643760,0.9841052,87709.0,87708.0,0.00017101]
[1764073643970,0.9841052,87709.0,87708.0,0.02229101]
[1764073645771,0.9841052,87709.0,87708.0,0.00017101]
[1764073646362,0.9841052,87709.0,87708.0,0.01157631]
[1764073646562,0.9841052,87709.0,87708.0,0.03369631]
[1764073647870,0.9727,87709.0,87708.0,0.05536631]
[1764073650570,0.52142,87709.0,87708.0,0.05536631]
[1764073650974,0.02142,87709.0,87708.0,0.05536631]
[1764073651278,0.04406,87709.0,87708.0,0.05536631]
[1764073651478,0.04406,87709.0,87708.0,0.04396101]
[1764073651682,0.4254652,87709.0,87708.0,0.00017101]
[1764073652071,0.9254652,87709.0,87708.0,0.04108333]
[1764073652978,1.3254652,87709.0,87708.0,0.00017101]
[1764073653182,0.0566656,87706.0,87704.0,0.00591333]
[1764073653374,0.00306,87705.0,87704.0,0.00591333]
[1764073653575,0.77306,87705.0,87704.0,0.00591333]
[1764073653776,0.00306,87699.0,87698.0,0.06135664]
[1764073654075,0.00306,87698.0,87697.0,0.06135664]
[1764073654281,0.00306,87698.0,87697.0,0.08347664]
[1764073654676,0.00306,87695.0,87694.0,0.06135664]
[1764073654982,0.00306,87691.0,87690.0,0.05696]
[1764073655182,0.0144676,87690.0,87689.0,0.00017101]
[1764073655368,0.8344676,87690.0,87689.0,0.00017101]
[1764073655568,0.40306,87690.0,87689.0,0.00017101]
[1764073656479,0.40306,87690.0,87689.0,0.00117101]
[1764073656480,0.84306,87690.0,87689.0,0.00117101]
[1764073656678,0.84306,87690.0,87689.0,0.00217101]
[1764073656981,1.34306,87690.0,87689.0,0.00217101]
[1764073659886,0.90306,87690.0,87689.0,0.00217101]
[1764073660381,0.90306,87690.0,87673.0,0.04379]
[1764073660382,0.0114097,87675.0,87673.0,0.04379]
[1764073660576,0.3814097,87675.0,87673.0,0.04379]
[1764073660886,0.3814097,87675.0,87674.0,0.0551997]
[1764073661286,0.37,87675.0,87674.0,0.0551997]
[1764073661789,0.3814096,87675.0,87674.0,0.04379]
[1764073662286,0.8814096,87675.0,87674.0,0.04379]
[1764073662991,0.8814096,87675.0,87674.0,0.04579]
[1764073665293,0.87,87675.0,87674.0,0.04579]
[1764073677123,0.87,87675.0,87674.0,0.0571997]
[1764073678007,0.5,87675.0,87674.0,0.0571997]
[1764073679914,0.00017101,87683.0,87682.0,0.0540987]
[1764073680305,0.01157961,87683.0,87682.0,0.0540987]
[1764073680502,0.01157961,87683.0,87682.0,0.04269]
[1764073681014,0.01157961,87683.0,87682.0,0.04369]
[1764073681210,0.50017101,87683.0,87682.0,0.04369]
[1764073681607,0.51157961,87683.0,87682.0,0.001]
[1764073681806,0.51157961,87683.0,87682.0,0.02233]
[1764073682009,0.51157961,87683.0,87682.0,0.04369]
[1764073683112,0.88157961,87683.0,87682.0,0.04369]
[1764073683315,0.88157961,87683.0,87682.0,0.001]
[1764073683516,0.88157961,87683.0,87682.0,0.02233]
[1764073684110,0.88157961,87683.0,87682.0,0.04369]
[1764073684805,0.88157961,87683.0,87682.0,0.02233]
[1764073685014,0.88157961,87683.0,87682.0,0.04369]
[1764073685610,0.88157961,87683.0,87682.0,0.0550987]
[1764073685811,0.87017101,87683.0,87682.0,0.0550987]
[1764073687419,0.87017101,87683.0,87682.0,0.04369]
[1764073687614,0.87017101,87683.0,87682.0,0.02233]
[1764073688120,0.87017101,87683.0,87682.0,0.04369]
[1764073689521,0.87017101,87683.0,87682.0,0.10503661]
[1764073689712,0.50017101,87683.0,87682.0,0.10503661]
[1764073690220,0.50017101,87683.0,87682.0,0.04369]
[1764073692223,0.00017101,87683.0,87682.0,0.04369]
[1764073693023,0.0114041,87718.0,87708.0,0.04349]
[1764073693321,0.0525656,87706.0,87705.0,0.02912]
[1764073693524,0.4825656,87706.0,87705.0,0.04349]
[1764073694115,0.9825656,87706.0,87705.0,0.04349]
[1764073695128,0.04373,87702.0,87701.0,0.09577089]
[1764073695421,0.0551362,87701.0,87700.0,0.04087479]
[1764073696218,0.0551362,87701.0,87699.0,0.04087479]
[1764073696219,0.04373,87700.0,87699.0,0.04087479]
[1764073696718,0.46373,87700.0,87699.0,0.04087479]
[1764073697024,0.46373,87700.0,87697.0,0.00017101]
[1764073697025,0.04373,87698.0,87697.0,0.00017101]
[1764073697225,0.42373,87698.0,87697.0,0.00017101]
[1764073697722,0.42373,87698.0,87697.0,0.01157771]
[1764073697923,0.42373,87698.0,87697.0,0.00017101]
[1764073698126,0.42373,87698.0,87697.0,0.01157771]
[1764073698318,0.9351366,87698.0,87697.0,0.00017101]
[1764073699822,0.9351366,87698.0,87697.0,0.00117101]
[1764073711531,0.9351366,87698.0,87697.0,0.001]
[1764073711734,0.04373,87691.0,87690.0,0.04349]
[1764073712929,0.04373,87691.0,87690.0,0.0548976]
[1764073713222,0.04373,87691.0,87690.0,0.0558976]
[1764073713835,0.04373,87691.0,87690.0,0.0690876]
[1764073714929,0.04373,87691.0,87690.0,0.0558976]
[1764073717936,0.04373,87691.0,87690.0,0.04449]
[1764073718131,0.46373,87691.0,87690.0,0.001]
[1764073718743,0.87373,87691.0,87690.0,0.001]
[1764073719039,0.89682389,87691.0,87690.0,0.001]
[1764073719240,0.04373,87671.0,87670.0,0.05668]
[1764073719937,0.04373,87671.0,87670.0,0.04349]
[1764073720237,0.04373,87662.0,87661.0,0.0549014]
[1764073720832,0.02131,87662.0,87661.0,0.0549014]
[1764073721928,0.0114099,87673.0,87668.0,0.0114105]
[1764073722128,0.47562,87673.0,87672.0,0.04344]
[1764073722434,0.04562,87673.0,87672.0,0.04344]
[1764073722830,0.45562,87673.0,87672.0,0.04344]
[1764073723239,0.95562,87673.0,87672.0,0.04344]
[1764073723934,0.54562,87673.0,87672.0,0.04344]
[1764073731229,0.54562,87673.0,87672.0,0.05485]
[1764073736447,0.54562,87673.0,87672.0,0.06828]
[1764073736645,0.5,87673.0,87672.0,0.12947699]
[1764073736844,0.52291,87673.0,87672.0,0.06828]
[1764073737449,0.04562,87673.0,87672.0,0.06828]
[1764073737646,0.04396101,87679.0,87678.0,0.0556792]
[1764073737840,0.00017101,87679.0,87678.0,0.0556792]
[1764073738036,0.02231101,87679.0,87678.0,0.0556792]
[1764073738242,0.04396101,87679.0,87678.0,0.0556792]
[1764073741649,0.04396101,87679.0,87678.0,0.04427]
[1764073742448,0.04396101,87679.0,87678.0,0.02122]
[1764073742946,0.04396101,87679.0,87678.0,0.04427]
[1764073746844,0.02231101,87679.0,87678.0,0.04427]
[1764073747050,0.04396101,87679.0,87678.0,0.04427]
[1764073747252,0.04396101,87679.0,87678.0,0.10547065]
[1764073750245,0.04396101,87679.0,87678.0,0.04427]
[1764073752062,0.04396101,87679.0,87678.0,0.0556792]
[1764073758256,0.00017101,87679.0,87678.0,0.0556792]
[1764073758462,0.00017101,87679.0,87671.0,0.11557]
[1764073758463,0.04257,87700.0,87699.0,0.0333065]
[1764073758761,0.04257,87700.0,87699.0,0.0546365]
[1764073759655,0.54257,87700.0,87699.0,0.0546365]
[1764073760059,0.54257,87700.0,87699.0,0.04323]
[1764073777276,0.04257,87700.0,87699.0,0.04323]
[1764073777780,0.05561,87700.0,87699.0,0.04323]
[1764073777977,0.05561,87700.0,87699.0,0.20109]
[1764073778172,0.05561,87700.0,87699.0,0.22299]
[1764073780671,0.05561,87700.0,87699.0,0.20109]
[1764073781271,0.04248,87699.0,87698.0,0.07264104]
[1764073781673,0.04248,87699.0,87698.0,0.19426104]
[1764073781980,0.04248,87699.0,87698.0,0.18285444]
[1764073782180,0.04248,87699.0,87698.0,0.12162]
[1764073782381,0.04248,87699.0,87698.0,0.14381]
[1764073787296,0.04248,87699.0,87698.0,0.22525]
[1764073787799,0.04248,87699.0,87698.0,0.2366566]
[1764073788299,0.04248,87699.0,87698.0,0.22525]
[1764073788702,0.04294,87695.0,87694.0,0.08172275]
[1764073788997,0.05598,87692.0,87691.0,0.03487861]
[1764073789196,0.05598,87692.0,87691.0,0.23682861]
[1764073789701,0.05598,87692.0,87691.0,0.22542111]
[1764073791096,0.05598,87692.0,87691.0,0.28672821]
[1764073791992,0.04294,87692.0,87691.0,0.28672821]
[1764073797106,0.04294,87692.0,87691.0,0.22542111]
[1764073800406,0.05549,87692.0,87691.0,0.00017111]
[1764073800599,0.05549,87692.0,87680.0,0.01268]
[1764073800600,0.04399,87690.0,87689.0,0.10218036]
[1764073800800,0.04399,87690.0,87680.0,0.0114089]
[1764073800801,0.0553982,87686.0,87685.0,0.0823171]
[1764073801000,0.0553982,87686.0,87668.0,0.0132]
[1764073801001,0.04399,87685.0,87684.0,0.0613071]
[1764073801201,0.0553988,87681.0,87680.0,0.0613071]
[1764073801509,0.0553988,87681.0,87678.0,0.04402]
[1764073801510,0.04399,87679.0,87678.0,0.04402]
[1764073801805,0.44399,87679.0,87678.0,0.02101]
[1764073801994,0.44399,87679.0,87678.0,0.04087174]
[1764073802199,0.86399,87679.0,87678.0,0.04087174]
[1764073802400,0.04399,87671.0,87670.0,0.04087174]
[1764073802601,0.4354001,87671.0,87670.0,0.08489174]
[1764073803303,0.4354001,87671.0,87670.0,0.0554302]
[1764073803509,0.42399,87671.0,87670.0,0.04402]
[1764073807308,0.42399,87671.0,87663.0,0.02101]
[1764073807309,0.05354,87664.0,87663.0,0.02101]
[1764073807509,0.05654,87676.0,87675.0,0.0554296]
[1764073807707,0.45399,87676.0,87675.0,0.04402]
[1764073808411,0.95399,87676.0,87675.0,0.04402]
[1764073811118,0.9653995,87676.0,87675.0,0.04402]
[1764073811814,0.9727895,87676.0,87675.0,0.04402]
[1764073812011,0.9727895,87676.0,87675.0,0.02101]
[1764073812711,0.0550406,87667.0,87666.0,0.08646174]
[1764073813320,0.06650005,87667.0,87666.0,0.08646174]
[1764073813916,0.0550406,87667.0,87666.0,0.08646174]
[1764073814112,0.04363,87667.0,87666.0,0.08646174]
[1764073815119,0.04363,87667.0,87666.0,0.04559]
[1764073817521,0.0550386,87683.0,87682.0,0.04559]
[1764073817821,0.4550386,87683.0,87682.0,0.04559]
[1764073818020,0.44363,87683.0,87682.0,0.04559]
[1764073818521,0.94363,87683.0,87682.0,0.04559]
[1764073819314,0.54363,87683.0,87682.0,0.04559]
[1764073819514,0.5219,87683.0,87682.0,0.04559]
[1764073819713,0.0219,87683.0,87682.0,0.08632916]
[1764073819909,0.04363,87683.0,87682.0,0.08632916]
[1764073820919,0.04363,87683.0,87682.0,0.04559]
[1764073821121,0.04363,87683.0,87682.0,0.08632916]
[1764073822122,0.04363,87683.0,87670.0,0.12022981]
[1764073822123,0.0550387,87682.0,87681.0,0.04073916]
[1764073822825,0.04363,87682.0,87681.0,0.08632916]
[1764073823213,0.04363,87682.0,87681.0,0.08635278]
[1764073823617,0.04363,87682.0,87681.0,0.04559]
[1764073824417,0.01004,87680.0,87676.0,0.0569995]
[1764073824618,0.04363,87677.0,87676.0,0.0569995]
[1764073825121,0.49363,87677.0,87676.0,0.0569995]
[1764073825319,0.49363,87677.0,87676.0,0.04559]
[1764073826224,0.49363,87677.0,87676.0,0.1068971]
[1764073827124,0.49363,87677.0,87676.0,0.04559]
[1764073827519,0.01004,87680.0,87665.0,0.05822]
[1764073827520,0.04363,87666.0,87665.0,0.05822]
[1764073827827,0.04363,87666.0,87665.0,0.23802]
[1764073828319,0.10622961,87680.0,87679.0,0.04559]
[1764073828520,0.43367,87680.0,87679.0,0.0864082]
[1764073828828,0.43367,87680.0,87679.0,0.0408182]
[1764073829125,0.43367,87680.0,87670.0,0.09618961]
[1764073829126,0.04363,87671.0,87670.0,0.14177961]
[1764073829325,0.04363,87671.0,87670.0,0.04559]
[1764073831025,0.04363,87671.0,87670.0,0.05822]
[1764073832626,0.04363,87671.0,87670.0,0.04559]
[1764073832828,0.04363,87671.0,87670.0,0.05822]
[1764073833527,0.04363,87671.0,87670.0,0.04559]
[1764073835122,0.04363,87671.0,87670.0,0.0231]
[1764073835523,0.04363,87671.0,87670.0,0.04559]
[1764073836216,0.54363,87671.0,87670.0,0.04559]
[1764073845338,0.54363,87671.0,87670.0,0.0570002]
[1764073847733,0.54363,87671.0,87670.0,0.04559]
[1764073847734,0.5550401,87671.0,87670.0,0.04559]
[1764073847935,0.54363,87671.0,87670.0,0.04559]
[1764073849023,0.54363,87671.0,87665.0,0.07389837]
[1764073849024,0.04575,87666.0,87665.0,0.08252837]
[1764073849234,0.04575,87666.0,87665.0,0.10576837]
[1764073850538,0.04575,87666.0,87665.0,0.11872837]
[1764073850733,0.04575,87666.0,87665.0,0.05746]
[1764073852432,0.04575,87666.0,87665.0,0.0445]
[1764073857743,0.04575,87666.0,87665.0,0.0559109]
[1764073859744,0.04575,87666.0,87665.0,0.0445]
[1764073861840,0.04411,87657.0,87656.0,0.14061275]
[1764073862035,0.00017111,87665.0,87664.0,0.070111]
[1764073862742,0.00017111,87665.0,87664.0,0.15183375]
[1764073862938,0.00017111,87665.0,87664.0,0.070111]
[1764073868247,0.02277111,87665.0,87664.0,0.070111]
[1764073868446,0.00017111,87665.0,87664.0,0.070111]
[1764073879053,0.02220111,87665.0,87664.0,0.070111]
[1764073879557,0.04399111,87665.0,87664.0,0.070111]
[1764073881058,0.48399111,87665.0,87664.0,0.151]
[1764073881556,0.48399111,87665.0,87664.0,0.233944]
[1764073882546,0.48399111,87665.0,87664.0,0.084374]
[1764073882860,0.04382,87653.0,87652.0,0.00013599]
[1764073883049,0.46382,87653.0,87652.0,0.00013599]
[1764073883249,0.86382,87653.0,87652.0,0.00013599]
[1764073883448,0.86382,87653.0,87639.0,0.061374]
[1764073883449,0.0681442,87640.0,87639.0,0.04296]
[1764073883957,0.07949231,87640.0,87639.0,0.04296]
[1764073884453,0.05673,87640.0,87639.0,0.05420161]
[1764073884652,0.06847879,87640.0,87639.0,0.05420161]
[1764073885046,0.06847879,87640.0,87639.0,0.03263161]
[1764073885253,0.06847879,87640.0,87639.0,0.01124161]
[1764073886257,1.38847879,87640.0,87639.0,0.01124161]
[1764073886649,0.0115,87625.0,87622.0,0.0114164]
[1764073886856,0.04382,87623.0,87622.0,0.0114164]
[1764073887057,0.04382,87623.0,87622.0,0.0328064]
[1764073887451,0.04382,87618.0,87617.0,0.1094071]
[1764073887660,0.04382,87618.0,87617.0,0.0328071]
[1764073888051,0.04382,87618.0,87617.0,0.0543771]
[1764073889146,0.04382,87608.0,87607.0,0.04296]
[1764073889353,0.04382,87608.0,87607.0,0.1446585]
[1764073889954,0.04382,87613.0,87612.0,0.0543777]
[1764073890156,0.04382,87613.0,87612.0,0.04296]
[1764073896165,0.01291,87635.0,87624.0,0.02157]
[1764073896166,0.04382,87625.0,87624.0,0.02157]
[1764073896358,0.04382,87625.0,87624.0,0.04296]
[1764073896559,0.54382,87625.0,87624.0,0.04296]
[1764073898256,0.54382,87625.0,87624.0,0.05623]
[1764073899860,0.54382,87625.0,87624.0,0.04296]
[1764073901571,0.5,87625.0,87624.0,0.05603]
[1764073902269,0.04320111,87632.0,87631.0,0.04533]
[1764073902569,0.04320111,87632.0,87631.0,0.0567453]
[1764073904272,0.00017111,87632.0,87631.0,0.0567453]
[1764073904468,0.04303,87648.0,87647.0,0.0567432]
[1764073904766,0.26303,87648.0,87647.0,0.0567432]
[1764073905274,0.54303,87648.0,87647.0,0.0567432]
[1764073905668,0.5,87648.0,87647.0,0.0567432]
[1764073906167,0.00017122,87656.0,87655.0,0.0567422]
[1764073907070,0.04320122,87656.0,87655.0,0.0567422]
[1764073908674,0.04320122,87656.0,87655.0,0.04533]
[1764073909068,0.04320122,87656.0,87655.0,0.02282]
[1764073909373,0.04303,87651.0,87650.0,0.04533]
[1764073910974,0.04303,87651.0,87650.0,0.02282]
[1764073911276,0.0126,87654.0,87642.0,0.04533]
[1764073911277,0.04303,87643.0,87642.0,0.04533]
[1764073911975,0.04303,87640.0,87639.0,0.02299122]
[1764073912270,0.04303,87640.0,87639.0,0.04550122]
[1764073914072,0.04303,87640.0,87639.0,0.00017122]
[1764073920680,0.05637,87654.0,87653.0,0.05597]
[1764073920984,0.38748,87654.0,87644.0,0.0673836]
[1764073921172,0.05637,87645.0,87644.0,0.0673836]
[1764073921576,0.05637,87645.0,87644.0,0.05597]
[1764073921984,0.55637,87645.0,87644.0,0.05597]
[1764073924584,0.05637,87640.0,87639.0,0.05614122]
[1764073924991,0.05637,87640.0,87639.0,0.00017122]
[1764073926586,0.48637,87640.0,87639.0,0.00017122]
[1764073927694,0.55637,87640.0,87639.0,0.05614122]
[1764073928689,0.55637,87640.0,87639.0,0.00017122]
[1764073930593,0.96637,87640.0,87639.0,0.00017122]
[1764073932903,1.36637,87640.0,87639.0,0.00017122]
[1764073933198,1.36637,87640.0,87624.0,0.05216919]
[1764073933199,0.0556,87625.0,87624.0,0.08086919]
[1764073933503,0.0556,87625.0,87624.0,0.11089919]
[1764073934005,0.0556,87636.0,87635.0,0.0701448]
[1764073935207,0.0556,87636.0,87635.0,0.05873]
[1764073939500,0.0556,87636.0,87635.0,0.09963453]
[1764073939501,0.02745,87636.0,87635.0,0.09963453]
[1764073939696,0.0556,87636.0,87635.0,0.05873]
[1764073940200,0.0556,87636.0,87635.0,0.09963453]
[1764073940407,0.0556,87636.0,87635.0,0.05873]
[1764073941504,0.0556,87636.0,87635.0,0.120104]
[1764073941703,0.0556,87636.0,87635.0,0.05873]
[1764073942106,0.0556,87636.0,87635.0,0.120104]
[1764073942806,0.0556,87636.0,87635.0,0.05873]
[1764073943610,0.0845247,87636.0,87635.0,0.05873]
[1764073944003,0.0556,87628.0,87627.0,0.14697]
[1764073944301,0.0556,87628.0,87627.0,0.05873]
[1764073945203,0.0556,87621.0,87620.0,0.15511468]
[1764073945402,0.0556,87621.0,87620.0,0.05873]
[1764073947507,0.0556,87621.0,87620.0,0.12015464]
[1764073948312,0.0556,87621.0,87620.0,0.05873]
[1764073952211,0.0670166,87621.0,87620.0,0.05873]
[1764073952716,0.0670166,87621.0,87620.0,0.12015464]
[1764073953015,0.0556,87621.0,87620.0,0.12015464]
[1764073954103,0.0556,87621.0,87620.0,0.13157144]
[1764073954315,0.0556,87621.0,87620.0,0.0701468]
[1764073954616,0.0556,87621.0,87620.0,0.13148785]
[1764073955315,0.0556,87621.0,87620.0,0.0701468]
[1764073956811,0.0556,87621.0,87620.0,0.05873]
[1764073958811,0.0845247,87636.0,87635.0,0.0287]
[1764073959010,0.5245247,87636.0,87635.0,0.0287]
[1764073959211,0.5245247,87636.0,87627.0,0.04090228]
[1764073959212,0.0556,87628.0,87627.0,0.09963228]
[1764073959611,0.5556,87628.0,87627.0,0.09963228]
[1764073960112,0.5556,87628.0,87627.0,0.05873]